{"text_format":"1","workbook":"xlsx","n_sheets":4,"sheets":["Main","DB","date","INV"],"not_rendered":{"charts":0,"images":0,"macros":1,"external_links":0,"defined_names":4,"comments":0,"pivot_tables":0},"unopened":[],"bounds":{"document_bytes":16777216,"sheet_cells":100000,"rows_first":2000,"rows_last":500,"rows_between":2000,"halvings":0,"cell_chars":16384,"cell_head_chars":4096},"cells_cut":0,"cells_raw":0,"read":"whole","date_system":"1900"}

{"sheet":"Main","index":0,"n_rows":153,"n_cols":17,"rows_kept":153,"cut":false,"hidden":false,"merged":[[28,6,29,6],[28,7,29,7],[28,8,29,8],[27,6,27,8],[1,1,2,17],[5,2,5,3],[6,2,6,3],[7,2,7,3],[8,2,8,3],[4,9,5,9],[4,10,5,10],[9,2,9,3],[10,2,10,3],[4,6,5,6],[4,7,5,7],[4,8,5,8],[4,12,5,12],[4,13,5,13],[4,14,5,14],[4,15,5,15],[4,16,5,16]]}
[]
[null,"قائمة لفحص الأسعار وإضافة الطلبات"]
[]
[]
[null,null,null,null,null,null,{"$f":"G29","v":"الصنف"},{"$f":"H29","v":"التعبئة"},{"$f":"I29","v":"السعر KD"},"المطلوب","المخزن",null,"الصنف","التعبئة",{"$f":"I29","v":"السعر KD"},"المطلوب","المخزن"]
[null,null,"المنطقه"]
[null,null,"العنوان",null,null,null,{"$f":"G31","v":"كوجا احمر "},{"$f":"H31","v":"كيلو"},2.2000000000000002,null,{"$f":"DB!$I$4","v":{"$error":"#REF!"}},null,{"$f":"G43","v":"نيكتارين "},{"$f":"H43","v":"سحارة"},{"$f":"I43","v":1.75},null,{"$f":"DB!$T$4","v":{"$error":"#REF!"}}]
[null,null,"التيلفون",null,null,null,"توت ","كيلو",3,null,{"$f":"DB!$J$4","v":{"$error":"#REF!"}},null,{"$f":"G44","v":"خوخ ابيض"},"سحارة",{"$f":"I44","v":3.75},null,{"$f":"DB!$U$4","v":{"$error":"#REF!"}}]
[null,null,"التاريخ",null,{"$f":"IF(E6<>\"\",TODAY(),\"\")","v":""},null,"جزر بيبي","علبة",0.5,null,{"$f":"DB!$K$4","v":{"$error":"#REF!"}},null,{"$f":"G45","v":"باميه"},{"$f":"H45","v":"15كيلو"},{"$f":"I45","v":15},null,{"$f":"DB!$V$4","v":{"$error":"#REF!"}}]
[null,null,"اسم السائق",null,null,null,"كرز","كيلو",1.5,null,{"$f":"DB!$L$4","v":{"$error":"#REF!"}},null,0,0,0,null,{"$f":"DB!$W$4","v":{"$error":"#REF!"}}]
[null,null,"ملاحظات",null,null,null,"مشمش","كيلو",1.5,null,{"$f":"DB!$M$4","v":{"$error":"#REF!"}},null,0,0,0,null,{"$f":"DB!$X$4","v":{"$error":"#REF!"}}]
[null,null,null,null,null,null,"تفاح","2.5كيلو",2.75,null,{"$f":"DB!$N$4","v":{"$error":"#REF!"}},null,0,0,0,null,{"$f":"DB!$Y$4","v":{"$error":"#REF!"}}]
[null,null,null,null,null,null,"مضغوط","سحارة",3.75,null,{"$f":"DB!$O$4","v":{"$error":"#REF!"}},null,0,0,0,null,{"$f":"DB!$Z$4","v":{"$error":"#REF!"}}]
[null,null,null,null,null,null,"لوبيا ","كيلو",1.5,null,{"$f":"DB!$P$4","v":{"$error":"#REF!"}},null,0,0,0,null,{"$f":"DB!$AA$4","v":{"$error":"#REF!"}}]
[null,null,null,null,null,null,"خوخ زعفران","علبه",2,null,{"$f":"DB!$Q$4","v":{"$error":"#REF!"}},null,0,{"$f":"H51","v":0},{"$f":"I51","v":0},null,{"$f":"DB!$AB$4","v":{"$error":"#REF!"}}]
[null,null,null,null,null,null,"فراوله","علبه",1.25,null,{"$f":"DB!$R$4","v":{"$error":"#REF!"}},null,0,{"$f":"H52","v":0},{"$f":"I52","v":0},null,{"$f":"DB!$AC$4","v":{"$error":"#REF!"}}]
[null,null,null,null,null,null,"خوخ اخضر ","سحارة",3.75,null,{"$f":"DB!$S$4","v":{"$error":"#REF!"}}]
[null,null,null,null,null,null,null,"المجموع",null,{"$f":"(J6*I30)+(J7*I31)+(J8*I32)+(J9*I33)+(J10*I34)+(J11*I35)+(J12*I36)+(J13*I37)+(J14*I38)+(J15*I39)+(J16*I40)+(J17*I41)+(P6*I42)+(P7*I43)+(P8*I44)+(P9*I45)+(P10*I46)+(P11*I47)+(P12*I48)+(P13*I49)+(P14*I50)+(P15*I51)+(P16*I52)+(P17*I53)","v":0}]
[]
[]
[]
[]
[]
[]
[]
[]
[]
[null,null,null,null,"أسماء السائقين",null,"قائمه الأسعار والاصناف",null,null,null,null,null,null,null,"المدن"]
[null,null,null,null,"شاذلي ربيع",null,"الصنف","التعبئة","السعر KD",null,null,null,null,null," الدوحة",{"$f":"IFERROR(IF(SEARCH($E$6,O29)>0,ROW(O29),\"\"),\"\")","v":29},{"$f":"IFERROR(INDEX(المدن,MATCH(SMALL($P$29:$P$153,ROWS($Q$29:Q29)),$P$29:$P$153,0)),\"\")","v":" الدوحة"}]
[null,null,null,null,"عبد الحميد همام",null,null,null,null,null,null,null,null,null,"الأندلس",30,{"$f":"IFERROR(INDEX(المدن,MATCH(SMALL($P$29:$P$153,ROWS($Q$29:Q30)),$P$29:$P$153,0)),\"\")","v":"الأندلس"}]
[null,null,null,null,"عبد الرحمن صيام",null,"كوجا احمر ","كيلو",2.2000000000000002,null,null,null,null,null,"التحرير",31,{"$f":"IFERROR(INDEX(المدن,MATCH(SMALL($P$29:$P$153,ROWS($Q$29:Q31)),$P$29:$P$153,0)),\"\")","v":"التحرير"}]
[null,null,null,null,"يوسف محمد",null,"توت ","كيلو",3,null,null,null,null,null,"السلام",32,{"$f":"IFERROR(INDEX(المدن,MATCH(SMALL($P$29:$P$153,ROWS($Q$29:Q32)),$P$29:$P$153,0)),\"\")","v":"السلام"}]
[null,null,null,null,"محمد نبيل",null,"جزر بيبي","علبة",0.5,null,null,null,null,null,"الشامية",33,{"$f":"IFERROR(INDEX(المدن,MATCH(SMALL($P$29:$P$153,ROWS($Q$29:Q33)),$P$29:$P$153,0)),\"\")","v":"الشامية"}]
[null,null,null,null,"محمود البطل",null,"كرز","كيلو",1.5,null,null,null,null,null,"العمرية",34,{"$f":"IFERROR(INDEX(المدن,MATCH(SMALL($P$29:$P$153,ROWS($Q$29:Q34)),$P$29:$P$153,0)),\"\")","v":"العمرية"}]
[null,null,null,null,"محمود عبد القادر",null,"مشمش","كيلو",1.5,null,null,null,null,null,"الكويت",35,{"$f":"IFERROR(INDEX(المدن,MATCH(SMALL($P$29:$P$153,ROWS($Q$29:Q35)),$P$29:$P$153,0)),\"\")","v":"الكويت"}]
[null,null,null,null,"محمد التمساحه",null,"تفاح","2.5كيلو",2.75,null,null,null,null,null,"مشرف",36,{"$f":"IFERROR(INDEX(المدن,MATCH(SMALL($P$29:$P$153,ROWS($Q$29:Q36)),$P$29:$P$153,0)),\"\")","v":"مشرف"}]
[null,null,null,null,"A",null,"مضغوط","سحارة",3.75,null,null,null,null,null,"أبرق خيطان",37,{"$f":"IFERROR(INDEX(المدن,MATCH(SMALL($P$29:$P$153,ROWS($Q$29:Q37)),$P$29:$P$153,0)),\"\")","v":"أبرق خيطان"}]
[null,null,null,null,"B",null,"لوبيا ","كيلو",1.5,null,null,null,null,null,"أبو حليفة",38,{"$f":"IFERROR(INDEX(المدن,MATCH(SMALL($P$29:$P$153,ROWS($Q$29:Q38)),$P$29:$P$153,0)),\"\")","v":"أبو حليفة"}]
[null,null,null,null,"C",null,"خوخ زعفران","علبه",2,null,null,null,null,null,"أبو فطيرة",39,{"$f":"IFERROR(INDEX(المدن,MATCH(SMALL($P$29:$P$153,ROWS($Q$29:Q39)),$P$29:$P$153,0)),\"\")","v":"أبو فطيرة"}]
[null,null,null,null,"D",null,"فراوله","علبه",1.25,null,null,null,null,null,"الاحمدي",40,{"$f":"IFERROR(INDEX(المدن,MATCH(SMALL($P$29:$P$153,ROWS($Q$29:Q40)),$P$29:$P$153,0)),\"\")","v":"الاحمدي"}]
[null,null,null,null,"E",null,"خوخ اخضر ","سحارة",3.75,null,null,null,null,null,"امغرة",41,{"$f":"IFERROR(INDEX(المدن,MATCH(SMALL($P$29:$P$153,ROWS($Q$29:Q41)),$P$29:$P$153,0)),\"\")","v":"امغرة"}]
[null,null,null,null,"F",null,"باميه","15كيلو",15,null,null,null,null,null,"البدع",42,{"$f":"IFERROR(INDEX(المدن,MATCH(SMALL($P$29:$P$153,ROWS($Q$29:Q42)),$P$29:$P$153,0)),\"\")","v":"البدع"}]
[null,null,null,null,"G",null,"نيكتارين ","سحارة",1.75,null,null,null,null,null,"بنيد القار",43,{"$f":"IFERROR(INDEX(المدن,MATCH(SMALL($P$29:$P$153,ROWS($Q$29:Q43)),$P$29:$P$153,0)),\"\")","v":"بنيد القار"}]
[null,null,null,null,"H",null,"خوخ ابيض","سحارة",3.75,null,null,null,null,null,"بنيدر",44,{"$f":"IFERROR(INDEX(المدن,MATCH(SMALL($P$29:$P$153,ROWS($Q$29:Q44)),$P$29:$P$153,0)),\"\")","v":"بنيدر"}]
[null,null,null,null,"I",null,"باميه","15كيلو",15,null,null,null,null,null,"بوبيان",45,{"$f":"IFERROR(INDEX(المدن,MATCH(SMALL($P$29:$P$153,ROWS($Q$29:Q45)),$P$29:$P$153,0)),\"\")","v":"بوبيان"}]
[null,null,null,null,null,null,null,null,null,null,null,null,null,null,"بيان",46,{"$f":"IFERROR(INDEX(المدن,MATCH(SMALL($P$29:$P$153,ROWS($Q$29:Q46)),$P$29:$P$153,0)),\"\")","v":"بيان"}]
[null,null,null,null,null,null,null,null,null,null,null,null,null,null,"تيماء",47,{"$f":"IFERROR(INDEX(المدن,MATCH(SMALL($P$29:$P$153,ROWS($Q$29:Q47)),$P$29:$P$153,0)),\"\")","v":"تيماء"}]
[null,null,null,null,null,null,null,null,null,null,null,null,null,null,"جابر الأحمد",48,{"$f":"IFERROR(INDEX(المدن,MATCH(SMALL($P$29:$P$153,ROWS($Q$29:Q48)),$P$29:$P$153,0)),\"\")","v":"جابر الأحمد"}]
[null,null,null,null,null,null,null,null,null,null,null,null,null,null,"الجابرية",49,{"$f":"IFERROR(INDEX(المدن,MATCH(SMALL($P$29:$P$153,ROWS($Q$29:Q49)),$P$29:$P$153,0)),\"\")","v":"الجابرية"}]
[null,null,null,null,null,null,null,null,null,null,null,null,null,null,"جليب الشيوخ",50,{"$f":"IFERROR(INDEX(المدن,MATCH(SMALL($P$29:$P$153,ROWS($Q$29:Q50)),$P$29:$P$153,0)),\"\")","v":"جليب الشيوخ"}]
[null,null,null,null,null,null,null,null,null,null,null,null,null,null,"الجليعة",51,{"$f":"IFERROR(INDEX(المدن,MATCH(SMALL($P$29:$P$153,ROWS($Q$29:Q51)),$P$29:$P$153,0)),\"\")","v":"الجليعة"}]
[null,null,null,null,null,null,null,null,null,null,null,null,null,null,"جنوب السرة",52,{"$f":"IFERROR(INDEX(المدن,MATCH(SMALL($P$29:$P$153,ROWS($Q$29:Q52)),$P$29:$P$153,0)),\"\")","v":"جنوب السرة"}]
[null,null,null,null,null,null,null,null,null,null,null,null,null,null,"الجهراء",53,{"$f":"IFERROR(INDEX(المدن,MATCH(SMALL($P$29:$P$153,ROWS($Q$29:Q53)),$P$29:$P$153,0)),\"\")","v":"الجهراء"}]
[null,null,null,null,null,null,null,null,null,null,null,null,null,null,"الجهراء الجديدة",54,{"$f":"IFERROR(INDEX(المدن,MATCH(SMALL($P$29:$P$153,ROWS($Q$29:Q54)),$P$29:$P$153,0)),\"\")","v":"الجهراء الجديدة"}]
[null,null,null,null,null,null,null,null,null,null,null,null,null,null,"الجهراء القديمة",55,{"$f":"IFERROR(INDEX(المدن,MATCH(SMALL($P$29:$P$153,ROWS($Q$29:Q55)),$P$29:$P$153,0)),\"\")","v":"الجهراء القديمة"}]
[null,null,null,null,null,null,null,null,null,null,null,null,null,null,"الحساوي",56,{"$f":"IFERROR(INDEX(المدن,MATCH(SMALL($P$29:$P$153,ROWS($Q$29:Q56)),$P$29:$P$153,0)),\"\")","v":"الحساوي"}]
[null,null,null,null,null,null,null,null,null,null,null,null,null,null,"حطين",57,{"$f":"IFERROR(INDEX(المدن,MATCH(SMALL($P$29:$P$153,ROWS($Q$29:Q57)),$P$29:$P$153,0)),\"\")","v":"حطين"}]
[null,null,null,null,null,null,null,null,null,null,null,null,null,null,"حولي",58,{"$f":"IFERROR(INDEX(المدن,MATCH(SMALL($P$29:$P$153,ROWS($Q$29:Q58)),$P$29:$P$153,0)),\"\")","v":"حولي"}]
[null,null,null,null,null,null,null,null,null,null,null,null,null,null,"الخالدية",59,{"$f":"IFERROR(INDEX(المدن,MATCH(SMALL($P$29:$P$153,ROWS($Q$29:Q59)),$P$29:$P$153,0)),\"\")","v":"الخالدية"}]
[null,null,null,null,null,null,null,null,null,null,null,null,null,null,"خيران",60,{"$f":"IFERROR(INDEX(المدن,MATCH(SMALL($P$29:$P$153,ROWS($Q$29:Q60)),$P$29:$P$153,0)),\"\")","v":"خيران"}]
[null,null,null,null,null,null,null,null,null,null,null,null,null,null,"خيران",{"$f":"IFERROR(IF(SEARCH($E$6,O61)>0,ROW(O61),\"\"),\"\")","v":61},{"$f":"IFERROR(INDEX(المدن,MATCH(SMALL($P$29:$P$153,ROWS($Q$29:Q61)),$P$29:$P$153,0)),\"\")","v":"خيران"}]
[null,null,null,null,null,null,null,null,null,null,null,null,null,null,"خيطان",62,{"$f":"IFERROR(INDEX(المدن,MATCH(SMALL($P$29:$P$153,ROWS($Q$29:Q62)),$P$29:$P$153,0)),\"\")","v":"خيطان"}]
[null,null,null,null,null,null,null,null,null,null,null,null,null,null,"خيطان الجديدة",63,{"$f":"IFERROR(INDEX(المدن,MATCH(SMALL($P$29:$P$153,ROWS($Q$29:Q63)),$P$29:$P$153,0)),\"\")","v":"خيطان الجديدة"}]
[null,null,null,null,null,null,null,null,null,null,null,null,null,null,"دسمان",64,{"$f":"IFERROR(INDEX(المدن,MATCH(SMALL($P$29:$P$153,ROWS($Q$29:Q64)),$P$29:$P$153,0)),\"\")","v":"دسمان"}]
[null,null,null,null,null,null,null,null,null,null,null,null,null,null,"الدسمة",65,{"$f":"IFERROR(INDEX(المدن,MATCH(SMALL($P$29:$P$153,ROWS($Q$29:Q65)),$P$29:$P$153,0)),\"\")","v":"الدسمة"}]
[null,null,null,null,null,null,null,null,null,null,null,null,null,null,"الدعية",66,{"$f":"IFERROR(INDEX(المدن,MATCH(SMALL($P$29:$P$153,ROWS($Q$29:Q66)),$P$29:$P$153,0)),\"\")","v":"الدعية"}]
[null,null,null,null,null,null,null,null,null,null,null,null,null,null,"الرابية",67,{"$f":"IFERROR(INDEX(المدن,MATCH(SMALL($P$29:$P$153,ROWS($Q$29:Q67)),$P$29:$P$153,0)),\"\")","v":"الرابية"}]
[null,null,null,null,null,null,null,null,null,null,null,null,null,null,"الرحاب",68,{"$f":"IFERROR(INDEX(المدن,MATCH(SMALL($P$29:$P$153,ROWS($Q$29:Q68)),$P$29:$P$153,0)),\"\")","v":"الرحاب"}]
[null,null,null,null,null,null,null,null,null,null,null,null,null,null,"الرقة",69,{"$f":"IFERROR(INDEX(المدن,MATCH(SMALL($P$29:$P$153,ROWS($Q$29:Q69)),$P$29:$P$153,0)),\"\")","v":"الرقة"}]
[null,null,null,null,null,null,null,null,null,null,null,null,null,null,"الرقعي",70,{"$f":"IFERROR(INDEX(المدن,MATCH(SMALL($P$29:$P$153,ROWS($Q$29:Q70)),$P$29:$P$153,0)),\"\")","v":"الرقعي"}]
[null,null,null,null,null,null,null,null,null,null,null,null,null,null,"الرميثية",71,{"$f":"IFERROR(INDEX(المدن,MATCH(SMALL($P$29:$P$153,ROWS($Q$29:Q71)),$P$29:$P$153,0)),\"\")","v":"الرميثية"}]
[null,null,null,null,null,null,null,null,null,null,null,null,null,null,"الروضتين",72,{"$f":"IFERROR(INDEX(المدن,MATCH(SMALL($P$29:$P$153,ROWS($Q$29:Q72)),$P$29:$P$153,0)),\"\")","v":"الروضتين"}]
[null,null,null,null,null,null,null,null,null,null,null,null,null,null,"الري",73,{"$f":"IFERROR(INDEX(المدن,MATCH(SMALL($P$29:$P$153,ROWS($Q$29:Q73)),$P$29:$P$153,0)),\"\")","v":"الري"}]
[null,null,null,null,null,null,null,null,null,null,null,null,null,null,"الزهراء",74,{"$f":"IFERROR(INDEX(المدن,MATCH(SMALL($P$29:$P$153,ROWS($Q$29:Q74)),$P$29:$P$153,0)),\"\")","v":"الزهراء"}]
[null,null,null,null,null,null,null,null,null,null,null,null,null,null,"الزور",75,{"$f":"IFERROR(INDEX(المدن,MATCH(SMALL($P$29:$P$153,ROWS($Q$29:Q75)),$P$29:$P$153,0)),\"\")","v":"الزور"}]
[null,null,null,null,null,null,null,null,null,null,null,null,null,null,"السالمي",76,{"$f":"IFERROR(INDEX(المدن,MATCH(SMALL($P$29:$P$153,ROWS($Q$29:Q76)),$P$29:$P$153,0)),\"\")","v":"السالمي"}]
[null,null,null,null,null,null,null,null,null,null,null,null,null,null,"السالمية",77,{"$f":"IFERROR(INDEX(المدن,MATCH(SMALL($P$29:$P$153,ROWS($Q$29:Q77)),$P$29:$P$153,0)),\"\")","v":"السالمية"}]
[null,null,null,null,null,null,null,null,null,null,null,null,null,null,"السرة",78,{"$f":"IFERROR(INDEX(المدن,MATCH(SMALL($P$29:$P$153,ROWS($Q$29:Q78)),$P$29:$P$153,0)),\"\")","v":"السرة"}]
[null,null,null,null,null,null,null,null,null,null,null,null,null,null,"سعد العبد الله",79,{"$f":"IFERROR(INDEX(المدن,MATCH(SMALL($P$29:$P$153,ROWS($Q$29:Q79)),$P$29:$P$153,0)),\"\")","v":"سعد العبد الله"}]
[null,null,null,null,null,null,null,null,null,null,null,null,null,null,"سلوى",80,{"$f":"IFERROR(INDEX(المدن,MATCH(SMALL($P$29:$P$153,ROWS($Q$29:Q80)),$P$29:$P$153,0)),\"\")","v":"سلوى"}]
[null,null,null,null,null,null,null,null,null,null,null,null,null,null,"اشبيلية",81,{"$f":"IFERROR(INDEX(المدن,MATCH(SMALL($P$29:$P$153,ROWS($Q$29:Q81)),$P$29:$P$153,0)),\"\")","v":"اشبيلية"}]
[null,null,null,null,null,null,null,null,null,null,null,null,null,null,"الشدادية",82,{"$f":"IFERROR(INDEX(المدن,MATCH(SMALL($P$29:$P$153,ROWS($Q$29:Q82)),$P$29:$P$153,0)),\"\")","v":"الشدادية"}]
[null,null,null,null,null,null,null,null,null,null,null,null,null,null,"شرق",83,{"$f":"IFERROR(INDEX(المدن,MATCH(SMALL($P$29:$P$153,ROWS($Q$29:Q83)),$P$29:$P$153,0)),\"\")","v":"شرق"}]
[null,null,null,null,null,null,null,null,null,null,null,null,null,null,"الشعب",84,{"$f":"IFERROR(INDEX(المدن,MATCH(SMALL($P$29:$P$153,ROWS($Q$29:Q84)),$P$29:$P$153,0)),\"\")","v":"الشعب"}]
[null,null,null,null,null,null,null,null,null,null,null,null,null,null,"الشعيبة",85,{"$f":"IFERROR(INDEX(المدن,MATCH(SMALL($P$29:$P$153,ROWS($Q$29:Q85)),$P$29:$P$153,0)),\"\")","v":"الشعيبة"}]
[null,null,null,null,null,null,null,null,null,null,null,null,null,null,"الشهداء",86,{"$f":"IFERROR(INDEX(المدن,MATCH(SMALL($P$29:$P$153,ROWS($Q$29:Q86)),$P$29:$P$153,0)),\"\")","v":"الشهداء"}]
[null,null,null,null,null,null,null,null,null,null,null,null,null,null,"الشويخ",87,{"$f":"IFERROR(INDEX(المدن,MATCH(SMALL($P$29:$P$153,ROWS($Q$29:Q87)),$P$29:$P$153,0)),\"\")","v":"الشويخ"}]
[null,null,null,null,null,null,null,null,null,null,null,null,null,null,"الصالحية",88,{"$f":"IFERROR(INDEX(المدن,MATCH(SMALL($P$29:$P$153,ROWS($Q$29:Q88)),$P$29:$P$153,0)),\"\")","v":"الصالحية"}]
[null,null,null,null,null,null,null,null,null,null,null,null,null,null,"صباح الأحمد",89,{"$f":"IFERROR(INDEX(المدن,MATCH(SMALL($P$29:$P$153,ROWS($Q$29:Q89)),$P$29:$P$153,0)),\"\")","v":"صباح الأحمد"}]
[null,null,null,null,null,null,null,null,null,null,null,null,null,null,"الصباحية",90,{"$f":"IFERROR(INDEX(المدن,MATCH(SMALL($P$29:$P$153,ROWS($Q$29:Q90)),$P$29:$P$153,0)),\"\")","v":"الصباحية"}]
[null,null,null,null,null,null,null,null,null,null,null,null,null,null,"صبحان",91,{"$f":"IFERROR(INDEX(المدن,MATCH(SMALL($P$29:$P$153,ROWS($Q$29:Q91)),$P$29:$P$153,0)),\"\")","v":"صبحان"}]
[null,null,null,null,null,null,null,null,null,null,null,null,null,null,"الصبية",92,{"$f":"IFERROR(INDEX(المدن,MATCH(SMALL($P$29:$P$153,ROWS($Q$29:Q92)),$P$29:$P$153,0)),\"\")","v":"الصبية"}]
[null,null,null,null,null,null,null,null,null,null,null,null,null,null,"الصديق",{"$f":"IFERROR(IF(SEARCH($E$6,O93)>0,ROW(O93),\"\"),\"\")","v":93},{"$f":"IFERROR(INDEX(المدن,MATCH(SMALL($P$29:$P$153,ROWS($Q$29:Q93)),$P$29:$P$153,0)),\"\")","v":"الصديق"}]
[null,null,null,null,null,null,null,null,null,null,null,null,null,null,"الصليبية",94,{"$f":"IFERROR(INDEX(المدن,MATCH(SMALL($P$29:$P$153,ROWS($Q$29:Q94)),$P$29:$P$153,0)),\"\")","v":"الصليبية"}]
[null,null,null,null,null,null,null,null,null,null,null,null,null,null,"الصليبيخات",95,{"$f":"IFERROR(INDEX(المدن,MATCH(SMALL($P$29:$P$153,ROWS($Q$29:Q95)),$P$29:$P$153,0)),\"\")","v":"الصليبيخات"}]
[null,null,null,null,null,null,null,null,null,null,null,null,null,null,"الصوابر",96,{"$f":"IFERROR(INDEX(المدن,MATCH(SMALL($P$29:$P$153,ROWS($Q$29:Q96)),$P$29:$P$153,0)),\"\")","v":"الصوابر"}]
[null,null,null,null,null,null,null,null,null,null,null,null,null,null,"ضاحية جابر العلي",97,{"$f":"IFERROR(INDEX(المدن,MATCH(SMALL($P$29:$P$153,ROWS($Q$29:Q97)),$P$29:$P$153,0)),\"\")","v":"ضاحية جابر العلي"}]
[null,null,null,null,null,null,null,null,null,null,null,null,null,null,"ضاحية صباح السالم",98,{"$f":"IFERROR(INDEX(المدن,MATCH(SMALL($P$29:$P$153,ROWS($Q$29:Q98)),$P$29:$P$153,0)),\"\")","v":"ضاحية صباح السالم"}]
[null,null,null,null,null,null,null,null,null,null,null,null,null,null,"ضاحية صباح الناصر",99,{"$f":"IFERROR(INDEX(المدن,MATCH(SMALL($P$29:$P$153,ROWS($Q$29:Q99)),$P$29:$P$153,0)),\"\")","v":"ضاحية صباح الناصر"}]
[null,null,null,null,null,null,null,null,null,null,null,null,null,null,"ضاحية عبد الله السالم",100,{"$f":"IFERROR(INDEX(المدن,MATCH(SMALL($P$29:$P$153,ROWS($Q$29:Q100)),$P$29:$P$153,0)),\"\")","v":"ضاحية عبد الله السالم"}]
[null,null,null,null,null,null,null,null,null,null,null,null,null,null,"ضاحية عبد الله المبارك",101,{"$f":"IFERROR(INDEX(المدن,MATCH(SMALL($P$29:$P$153,ROWS($Q$29:Q101)),$P$29:$P$153,0)),\"\")","v":"ضاحية عبد الله المبارك"}]
[null,null,null,null,null,null,null,null,null,null,null,null,null,null,"ضاحية علي صباح السالم",102,{"$f":"IFERROR(INDEX(المدن,MATCH(SMALL($P$29:$P$153,ROWS($Q$29:Q102)),$P$29:$P$153,0)),\"\")","v":"ضاحية علي صباح السالم"}]
[null,null,null,null,null,null,null,null,null,null,null,null,null,null,"ضاحية فهد الأحمد",103,{"$f":"IFERROR(INDEX(المدن,MATCH(SMALL($P$29:$P$153,ROWS($Q$29:Q103)),$P$29:$P$153,0)),\"\")","v":"ضاحية فهد الأحمد"}]
[null,null,null,null,null,null,null,null,null,null,null,null,null,null,"ضاحية مبارك العبد الله الجابر",104,{"$f":"IFERROR(INDEX(المدن,MATCH(SMALL($P$29:$P$153,ROWS($Q$29:Q104)),$P$29:$P$153,0)),\"\")","v":"ضاحية مبارك العبد الله الجابر"}]
[null,null,null,null,null,null,null,null,null,null,null,null,null,null,"الضباعية",105,{"$f":"IFERROR(INDEX(المدن,MATCH(SMALL($P$29:$P$153,ROWS($Q$29:Q105)),$P$29:$P$153,0)),\"\")","v":"الضباعية"}]
[null,null,null,null,null,null,null,null,null,null,null,null,null,null,"الضجيج",106,{"$f":"IFERROR(INDEX(المدن,MATCH(SMALL($P$29:$P$153,ROWS($Q$29:Q106)),$P$29:$P$153,0)),\"\")","v":"الضجيج"}]
[null,null,null,null,null,null,null,null,null,null,null,null,null,null,"الظهر",107,{"$f":"IFERROR(INDEX(المدن,MATCH(SMALL($P$29:$P$153,ROWS($Q$29:Q107)),$P$29:$P$153,0)),\"\")","v":"الظهر"}]
[null,null,null,null,null,null,null,null,null,null,null,null,null,null,"العارضية",108,{"$f":"IFERROR(INDEX(المدن,MATCH(SMALL($P$29:$P$153,ROWS($Q$29:Q108)),$P$29:$P$153,0)),\"\")","v":"العارضية"}]
[null,null,null,null,null,null,null,null,null,null,null,null,null,null,"العارضية الصناعية",109,{"$f":"IFERROR(INDEX(المدن,MATCH(SMALL($P$29:$P$153,ROWS($Q$29:Q109)),$P$29:$P$153,0)),\"\")","v":"العارضية الصناعية"}]
[null,null,null,null,null,null,null,null,null,null,null,null,null,null,"العباسية",110,{"$f":"IFERROR(INDEX(المدن,MATCH(SMALL($P$29:$P$153,ROWS($Q$29:Q110)),$P$29:$P$153,0)),\"\")","v":"العباسية"}]
[null,null,null,null,null,null,null,null,null,null,null,null,null,null,"العبدلي",111,{"$f":"IFERROR(INDEX(المدن,MATCH(SMALL($P$29:$P$153,ROWS($Q$29:Q111)),$P$29:$P$153,0)),\"\")","v":"العبدلي"}]
[null,null,null,null,null,null,null,null,null,null,null,null,null,null,"العدان",112,{"$f":"IFERROR(INDEX(المدن,MATCH(SMALL($P$29:$P$153,ROWS($Q$29:Q112)),$P$29:$P$153,0)),\"\")","v":"العدان"}]
[null,null,null,null,null,null,null,null,null,null,null,null,null,null,"العديلية",113,{"$f":"IFERROR(INDEX(المدن,MATCH(SMALL($P$29:$P$153,ROWS($Q$29:Q113)),$P$29:$P$153,0)),\"\")","v":"العديلية"}]
[null,null,null,null,null,null,null,null,null,null,null,null,null,null,"العقيلة",114,{"$f":"IFERROR(INDEX(المدن,MATCH(SMALL($P$29:$P$153,ROWS($Q$29:Q114)),$P$29:$P$153,0)),\"\")","v":"العقيلة"}]
[null,null,null,null,null,null,null,null,null,null,null,null,null,null,"العيون",115,{"$f":"IFERROR(INDEX(المدن,MATCH(SMALL($P$29:$P$153,ROWS($Q$29:Q115)),$P$29:$P$153,0)),\"\")","v":"العيون"}]
[null,null,null,null,null,null,null,null,null,null,null,null,null,null,"غرناطة",116,{"$f":"IFERROR(INDEX(المدن,MATCH(SMALL($P$29:$P$153,ROWS($Q$29:Q116)),$P$29:$P$153,0)),\"\")","v":"غرناطة"}]
[null,null,null,null,null,null,null,null,null,null,null,null,null,null,"الفحيحيل",117,{"$f":"IFERROR(INDEX(المدن,MATCH(SMALL($P$29:$P$153,ROWS($Q$29:Q117)),$P$29:$P$153,0)),\"\")","v":"الفحيحيل"}]
[null,null,null,null,null,null,null,null,null,null,null,null,null,null,"الفردوس",118,{"$f":"IFERROR(INDEX(المدن,MATCH(SMALL($P$29:$P$153,ROWS($Q$29:Q118)),$P$29:$P$153,0)),\"\")","v":"الفردوس"}]
[null,null,null,null,null,null,null,null,null,null,null,null,null,null,"الفروانية",119,{"$f":"IFERROR(INDEX(المدن,MATCH(SMALL($P$29:$P$153,ROWS($Q$29:Q119)),$P$29:$P$153,0)),\"\")","v":"الفروانية"}]
[null,null,null,null,null,null,null,null,null,null,null,null,null,null,"الفنطاس",120,{"$f":"IFERROR(INDEX(المدن,MATCH(SMALL($P$29:$P$153,ROWS($Q$29:Q120)),$P$29:$P$153,0)),\"\")","v":"الفنطاس"}]
[null,null,null,null,null,null,null,null,null,null,null,null,null,null,"الفنيطيس",121,{"$f":"IFERROR(INDEX(المدن,MATCH(SMALL($P$29:$P$153,ROWS($Q$29:Q121)),$P$29:$P$153,0)),\"\")","v":"الفنيطيس"}]
[null,null,null,null,null,null,null,null,null,null,null,null,null,null,"الفيحاء",122,{"$f":"IFERROR(INDEX(المدن,MATCH(SMALL($P$29:$P$153,ROWS($Q$29:Q122)),$P$29:$P$153,0)),\"\")","v":"الفيحاء"}]
[null,null,null,null,null,null,null,null,null,null,null,null,null,null,"القادسية",123,{"$f":"IFERROR(INDEX(المدن,MATCH(SMALL($P$29:$P$153,ROWS($Q$29:Q123)),$P$29:$P$153,0)),\"\")","v":"القادسية"}]
[null,null,null,null,null,null,null,null,null,null,null,null,null,null,"القبلة",124,{"$f":"IFERROR(INDEX(المدن,MATCH(SMALL($P$29:$P$153,ROWS($Q$29:Q124)),$P$29:$P$153,0)),\"\")","v":"القبلة"}]
[null,null,null,null,null,null,null,null,null,null,null,null,null,null,"قرطبة",{"$f":"IFERROR(IF(SEARCH($E$6,O125)>0,ROW(O125),\"\"),\"\")","v":125},{"$f":"IFERROR(INDEX(المدن,MATCH(SMALL($P$29:$P$153,ROWS($Q$29:Q125)),$P$29:$P$153,0)),\"\")","v":"قرطبة"}]
[null,null,null,null,null,null,null,null,null,null,null,null,null,null,"القرين",126,{"$f":"IFERROR(INDEX(المدن,MATCH(SMALL($P$29:$P$153,ROWS($Q$29:Q126)),$P$29:$P$153,0)),\"\")","v":"القرين"}]
[null,null,null,null,null,null,null,null,null,null,null,null,null,null,"القصر",127,{"$f":"IFERROR(INDEX(المدن,MATCH(SMALL($P$29:$P$153,ROWS($Q$29:Q127)),$P$29:$P$153,0)),\"\")","v":"القصر"}]
[null,null,null,null,null,null,null,null,null,null,null,null,null,null,"القصور",128,{"$f":"IFERROR(INDEX(المدن,MATCH(SMALL($P$29:$P$153,ROWS($Q$29:Q128)),$P$29:$P$153,0)),\"\")","v":"القصور"}]
[null,null,null,null,null,null,null,null,null,null,null,null,null,null,"القيروان",129,{"$f":"IFERROR(INDEX(المدن,MATCH(SMALL($P$29:$P$153,ROWS($Q$29:Q129)),$P$29:$P$153,0)),\"\")","v":"القيروان"}]
[null,null,null,null,null,null,null,null,null,null,null,null,null,null,"كاظمة",130,{"$f":"IFERROR(INDEX(المدن,MATCH(SMALL($P$29:$P$153,ROWS($Q$29:Q130)),$P$29:$P$153,0)),\"\")","v":"كاظمة"}]
[null,null,null,null,null,null,null,null,null,null,null,null,null,null,"كبد",131,{"$f":"IFERROR(INDEX(المدن,MATCH(SMALL($P$29:$P$153,ROWS($Q$29:Q131)),$P$29:$P$153,0)),\"\")","v":"كبد"}]
[null,null,null,null,null,null,null,null,null,null,null,null,null,null,"كيفان",132,{"$f":"IFERROR(INDEX(المدن,MATCH(SMALL($P$29:$P$153,ROWS($Q$29:Q132)),$P$29:$P$153,0)),\"\")","v":"كيفان"}]
[null,null,null,null,null,null,null,null,null,null,null,null,null,null,"مبارك الكبير",133,{"$f":"IFERROR(INDEX(المدن,MATCH(SMALL($P$29:$P$153,ROWS($Q$29:Q133)),$P$29:$P$153,0)),\"\")","v":"مبارك الكبير"}]
[null,null,null,null,null,null,null,null,null,null,null,null,null,null,"المرقاب",134,{"$f":"IFERROR(INDEX(المدن,MATCH(SMALL($P$29:$P$153,ROWS($Q$29:Q134)),$P$29:$P$153,0)),\"\")","v":"المرقاب"}]
[null,null,null,null,null,null,null,null,null,null,null,null,null,null,"المسيلة",135,{"$f":"IFERROR(INDEX(المدن,MATCH(SMALL($P$29:$P$153,ROWS($Q$29:Q135)),$P$29:$P$153,0)),\"\")","v":"المسيلة"}]
[null,null,null,null,null,null,null,null,null,null,null,null,null,null,"المطلاع",136,{"$f":"IFERROR(INDEX(المدن,MATCH(SMALL($P$29:$P$153,ROWS($Q$29:Q136)),$P$29:$P$153,0)),\"\")","v":"المطلاع"}]
[null,null,null,null,null,null,null,null,null,null,null,null,null,null,"المقوع",137,{"$f":"IFERROR(INDEX(المدن,MATCH(SMALL($P$29:$P$153,ROWS($Q$29:Q137)),$P$29:$P$153,0)),\"\")","v":"المقوع"}]
[null,null,null,null,null,null,null,null,null,null,null,null,null,null,"المنصورية",138,{"$f":"IFERROR(INDEX(المدن,MATCH(SMALL($P$29:$P$153,ROWS($Q$29:Q138)),$P$29:$P$153,0)),\"\")","v":"المنصورية"}]
[null,null,null,null,null,null,null,null,null,null,null,null,null,null,"المنقف",139,{"$f":"IFERROR(INDEX(المدن,MATCH(SMALL($P$29:$P$153,ROWS($Q$29:Q139)),$P$29:$P$153,0)),\"\")","v":"المنقف"}]
[null,null,null,null,null,null,null,null,null,null,null,null,null,null,"المهبولة",140,{"$f":"IFERROR(INDEX(المدن,MATCH(SMALL($P$29:$P$153,ROWS($Q$29:Q140)),$P$29:$P$153,0)),\"\")","v":"المهبولة"}]
[null,null,null,null,null,null,null,null,null,null,null,null,null,null,"النزهة",141,{"$f":"IFERROR(INDEX(المدن,MATCH(SMALL($P$29:$P$153,ROWS($Q$29:Q141)),$P$29:$P$153,0)),\"\")","v":"النزهة"}]
[null,null,null,null,null,null,null,null,null,null,null,null,null,null,"النسيم",142,{"$f":"IFERROR(INDEX(المدن,MATCH(SMALL($P$29:$P$153,ROWS($Q$29:Q142)),$P$29:$P$153,0)),\"\")","v":"النسيم"}]
[null,null,null,null,null,null,null,null,null,null,null,null,null,null,"النعيم",143,{"$f":"IFERROR(INDEX(المدن,MATCH(SMALL($P$29:$P$153,ROWS($Q$29:Q143)),$P$29:$P$153,0)),\"\")","v":"النعيم"}]
[null,null,null,null,null,null,null,null,null,null,null,null,null,null,"النقرة",144,{"$f":"IFERROR(INDEX(المدن,MATCH(SMALL($P$29:$P$153,ROWS($Q$29:Q144)),$P$29:$P$153,0)),\"\")","v":"النقرة"}]
[null,null,null,null,null,null,null,null,null,null,null,null,null,null,"النهضة",145,{"$f":"IFERROR(INDEX(المدن,MATCH(SMALL($P$29:$P$153,ROWS($Q$29:Q145)),$P$29:$P$153,0)),\"\")","v":"النهضة"}]
[null,null,null,null,null,null,null,null,null,null,null,null,null,null,"النويصيب",146,{"$f":"IFERROR(INDEX(المدن,MATCH(SMALL($P$29:$P$153,ROWS($Q$29:Q146)),$P$29:$P$153,0)),\"\")","v":"النويصيب"}]
[null,null,null,null,null,null,null,null,null,null,null,null,null,null,"هدية",147,{"$f":"IFERROR(INDEX(المدن,MATCH(SMALL($P$29:$P$153,ROWS($Q$29:Q147)),$P$29:$P$153,0)),\"\")","v":"هدية"}]
[null,null,null,null,null,null,null,null,null,null,null,null,null,null,"الواحة",148,{"$f":"IFERROR(INDEX(المدن,MATCH(SMALL($P$29:$P$153,ROWS($Q$29:Q148)),$P$29:$P$153,0)),\"\")","v":"الواحة"}]
[null,null,null,null,null,null,null,null,null,null,null,null,null,null,"واره",149,{"$f":"IFERROR(INDEX(المدن,MATCH(SMALL($P$29:$P$153,ROWS($Q$29:Q149)),$P$29:$P$153,0)),\"\")","v":"واره"}]
[null,null,null,null,null,null,null,null,null,null,null,null,null,null,"وربة",150,{"$f":"IFERROR(INDEX(المدن,MATCH(SMALL($P$29:$P$153,ROWS($Q$29:Q150)),$P$29:$P$153,0)),\"\")","v":"وربة"}]
[null,null,null,null,null,null,null,null,null,null,null,null,null,null,"الوطية",151,{"$f":"IFERROR(INDEX(المدن,MATCH(SMALL($P$29:$P$153,ROWS($Q$29:Q151)),$P$29:$P$153,0)),\"\")","v":"الوطية"}]
[null,null,null,null,null,null,null,null,null,null,null,null,null,null,"الوفرة",152,{"$f":"IFERROR(INDEX(المدن,MATCH(SMALL($P$29:$P$153,ROWS($Q$29:Q152)),$P$29:$P$153,0)),\"\")","v":"الوفرة"}]
[null,null,null,null,null,null,null,null,null,null,null,null,null,null,"اليرموك",153,{"$f":"IFERROR(INDEX(المدن,MATCH(SMALL($P$29:$P$153,ROWS($Q$29:Q153)),$P$29:$P$153,0)),\"\")","v":"اليرموك"}]

{"sheet":"DB","index":1,"n_rows":30,"n_cols":29,"rows_kept":30,"cut":false,"hidden":false,"merged":[]}
[null,"المنطقه","العنوان","التيلفون","التاريخ","اسم السائق","ملاحظات","المجموع",{"$f":"Main!G31&\"\n\"&Main!H31&\"\n\"&Main!I31","v":"كوجا احمر \nكيلو\n2.2"},{"$f":"Main!G32&\"\n\"&Main!H32&\"\n\"&Main!I32","v":"توت \nكيلو\n3"},{"$f":"Main!G33&\"\n\"&Main!H33&\"\n\"&Main!I33","v":"جزر بيبي\nعلبة\n0.5"},{"$f":"Main!G34&\"\n\"&Main!H34&\"\n\"&Main!I34","v":"كرز\nكيلو\n1.5"},{"$f":"Main!G35&\"\n\"&Main!H35&\"\n\"&Main!I35","v":"مشمش\nكيلو\n1.5"},{"$f":"Main!G36&\"\n\"&Main!H36&\"\n\"&Main!I36","v":"تفاح\n2.5كيلو\n2.75"},{"$f":"Main!G37&\"\n\"&Main!H37&\"\n\"&Main!I37","v":"مضغوط\nسحارة\n3.75"},{"$f":"Main!G38&\"\n\"&Main!H38&\"\n\"&Main!I38","v":"لوبيا \nكيلو\n1.5"},{"$f":"Main!G39&\"\n\"&Main!H39&\"\n\"&Main!I39","v":"خوخ زعفران\nعلبه\n2"},{"$f":"Main!G40&\"\n\"&Main!H40&\"\n\"&Main!I40","v":"فراوله\nعلبه\n1.25"},{"$f":"Main!G41&\"\n\"&Main!H41&\"\n\"&Main!I41","v":"خوخ اخضر \nسحارة\n3.75"},{"$f":"Main!G43&\"\n\"&Main!H43&\"\n\"&Main!I43","v":"نيكتارين \nسحارة\n1.75"},{"$f":"Main!G44&\"\n\"&Main!H44&\"\n\"&Main!I44","v":"خوخ ابيض\nسحارة\n3.75"},{"$f":"Main!G45&\"\n\"&Main!H45&\"\n\"&Main!I45","v":"باميه\n15كيلو\n15"},{"$f":"Main!G46&\"\n\"&Main!H46&\"\n\"&Main!I46","v":"\n\n"},{"$f":"Main!G47&\"\n\"&Main!H47&\"\n\"&Main!I47","v":"\n\n"},{"$f":"Main!G48&\"\n\"&Main!H48&\"\n\"&Main!I48","v":"\n\n"},{"$f":"Main!G49&\"\n\"&Main!H49&\"\n\"&Main!I49","v":"\n\n"},{"$f":"Main!G50&\"\n\"&Main!H50&\"\n\"&Main!I50","v":"\n\n"},{"$f":"Main!G51&\"\n\"&Main!H51&\"\n\"&Main!I51","v":"\n\n"},{"$f":"Main!G52&\"\n\"&Main!H52&\"\n\"&Main!I52","v":"\n\n"}]
[null,"المجموع",null,null,null,null,null,{"$f":"SUM($H$6:$H$1992)","v":411.5},{"$f":"SUM($I$6:$I$2000)","v":2},{"$f":"SUM($J$6:$J$2000)","v":8},{"$f":"SUM($K$6:$K$2000)","v":6},{"$f":"SUM($L$6:$L$2000)","v":0},{"$f":"SUM($M$6:$M$2000)","v":0},{"$f":"SUM($N$6:$N$2000)","v":0},{"$f":"SUM($O$6:$O$2000)","v":85.5},{"$f":"SUM($P$6:$P$2000)","v":70},{"$f":"SUM($Q$6:$Q$2000)","v":13},{"$f":"SUM($R$6:$R$2000)","v":16},{"$f":"SUM($S$6:$S$2000)","v":0},{"$f":"SUM($T$6:$T$2000)","v":8},{"$f":"SUM($U$6:$U$2000)","v":0},{"$f":"SUM($V$6:$V$2000)","v":0},{"$f":"SUM($W$6:$W$2000)","v":0},{"$f":"SUM($X$6:$X$2000)","v":0},{"$f":"SUM($Y$6:$Y$2000)","v":0},{"$f":"SUM($Z$6:$Z$2000)","v":0},{"$f":"SUM($AA$6:$AA$2000)","v":0},{"$f":"SUM($AB$6:$AB$2000)","v":0},{"$f":"SUM($AC$6:$AC$2000)","v":0}]
[null,"الوارد"]
[null,"المخزن",null,null,null,null,null,{"$f":"H3-H2+#REF!","v":{"$error":"#REF!"}},{"$f":"I3-I2+#REF!","v":{"$error":"#REF!"}},{"$f":"J3-J2+#REF!","v":{"$error":"#REF!"}},{"$f":"K3-K2+#REF!","v":{"$error":"#REF!"}},{"$f":"L3-L2+#REF!","v":{"$error":"#REF!"}},{"$f":"M3-M2+#REF!","v":{"$error":"#REF!"}},{"$f":"N3-N2+#REF!","v":{"$error":"#REF!"}},{"$f":"O3-O2+#REF!","v":{"$error":"#REF!"}},{"$f":"P3-P2+#REF!","v":{"$error":"#REF!"}},{"$f":"Q3-Q2+#REF!","v":{"$error":"#REF!"}},{"$f":"R3-R2+#REF!","v":{"$error":"#REF!"}},{"$f":"S3-S2+#REF!","v":{"$error":"#REF!"}},{"$f":"T3-T2+#REF!","v":{"$error":"#REF!"}},{"$f":"U3-U2+#REF!","v":{"$error":"#REF!"}},{"$f":"V3-V2+#REF!","v":{"$error":"#REF!"}},{"$f":"W3-W2+#REF!","v":{"$error":"#REF!"}},{"$f":"X3-X2+#REF!","v":{"$error":"#REF!"}},{"$f":"Y3-Y2+#REF!","v":{"$error":"#REF!"}},{"$f":"Z3-Z2+#REF!","v":{"$error":"#REF!"}},{"$f":"AA3-AA2+#REF!","v":{"$error":"#REF!"}},{"$f":"AB3-AB2+#REF!","v":{"$error":"#REF!"}},{"$f":"AC3-AC2+#REF!","v":{"$error":"#REF!"}}]
[null,"إجمالي عدد الطلبات",null,null,null,null,null,{"$f":"SUBTOTAL(109,(H6:H1992))","v":411.5},{"$f":"SUBTOTAL(109,($I$6:$I$1992))","v":2},{"$f":"SUBTOTAL(109,($J$6:$J$1992))","v":8},{"$f":"SUBTOTAL(109,($K$6:$K$1992))","v":6},{"$f":"SUBTOTAL(109,($L$6:$L$1992))","v":0},{"$f":"SUBTOTAL(109,($M$6:$M$1992))","v":0},{"$f":"SUBTOTAL(109,($N$6:$N$1992))","v":0},{"$f":"SUBTOTAL(109,($O$6:$O$1992))","v":85.5},{"$f":"SUBTOTAL(109,($P$6:$P$1992))","v":70},{"$f":"SUBTOTAL(109,($Q$6:$Q$1992))","v":13},{"$f":"SUBTOTAL(109,($R$6:$R$1992))","v":16},{"$f":"SUBTOTAL(109,($S$6:$S$1992))","v":0},{"$f":"SUBTOTAL(109,($T$6:$T$1992))","v":8},{"$f":"SUBTOTAL(109,($U$6:$U$1992))","v":0},{"$f":"SUBTOTAL(109,($V$6:$V$1992))","v":0},{"$f":"SUBTOTAL(109,($W$6:$W$1992))","v":0},{"$f":"SUBTOTAL(109,($X$6:$X$1992))","v":0},{"$f":"SUBTOTAL(109,($Y$6:$Y$1992))","v":0},{"$f":"SUBTOTAL(109,($Z$6:$Z$1992))","v":0},{"$f":"SUBTOTAL(109,($AA$6:$AA$1992))","v":0},{"$f":"SUBTOTAL(109,($AB$6:$AB$1992))","v":0},{"$f":"SUBTOTAL(109,($AC$6:$AC$1992))","v":0}]
[null,"الرميثيه","ق7ش حراء ",12345645,null,"A",null,24.5,null,1,1,null,null,null,4.5,2.5,1,1,null,1]
[null,"القصور","ق7ش",23456789,null,"D",null,18,null,null,null,null,null,null,4.5,2.5,null,2]
[null,"مشرف","ق1ش",34567891,null,"D",null,17,null,null,null,null,null,null,4.5,2.5,1,1]
[null,"العقيله","ق3ش30",98765432,null,"D",null,15,1]
[null,"السره","ق6ش9",65412378,null,"D",null,13.25,null,null,null,null,null,null,4.5,2.5,1]
[null,"الرميثيه","ش حراء ج",14785236,null,"B",null,20.75,null,null,1,null,null,null,4.5,2.5,1,1]
[null,"السلام","ق3ش24",22244455,null,"B",null,8.5,null,1,null,null,null,null,4.5]
[null,"صباح السالم","ق6ش1",44967948.142857097,null,"B",null,18.75,1,null,null,null,null,null,null,2.5]
[null,"جابر الاحمد","ق1ش110",46510727.107142799,null,"B",null,17,null,1,1,null,null,null,4.5,null,1,null,null,1]
[null,"السره","ق3ش5",48053506.071428597,null,"B",null,17.75,null,2,1,null,null,null,null,null,1,1,null,2]
[null,"الدسمه","ق3ش الرميثيه ",49596285.035714298,null,"B",null,15.25,null,null,null,null,null,null,4.5,2.5,1,null,null,1]
[null,"سلوى","ق10ش14",62995543.961904697,null,"A",null,11.25,null,null,null,null,null,null,null,5,null,1]
[null,"المنقف","ق3ش303ع20",70224834.743537396,null,"A",null,23.5,null,1,null,null,null,null,4.5,5,2,null,null,1]
[null,"الجابريه","ق8ش",77454125.525169998,null,"A",null,55.5,null,null,null,null,null,null,18,16.5,null,1]
[null,"صباح السالم","ق9ش1ع51",84683416.306802705,null,"A",null,16.25,null,null,null,null,null,null,4.5,2.5,null,1,null,1]
[null,"قرناطه","ق2ش",91912707.088435397,null,"E",null,13,null,1,null,null,null,null,null,5,null,1]
[null,"مبارك الكبير","ق1ش2",99141997.870067999,null,"E",null,18.5,null,null,null,null,null,null,null,5.5,1,2]
[null,"مشرف","ق1ش7",99141997.870067999,null,"E",null,7.5,null,null,null,null,null,null,null,null,null,2]
[null,"الرميثيه","ق10ش ",99141997.870067999,null,"E",null,0]
[null,"صباح السالم","ق4ش13",99141997.870067999,null,"E",null,6.75,null,null,null,null,null,null,4.5]
[null,"الدعيه","ق4ش الم13 ",99141997.870067999,null,"E",null,0]
[null,"العدان","ق7 ش11",99141997.870067999,null,"H",null,17,null,null,null,null,null,null,4.5,2.5,1,1]
[null,"مبارك الكبير","ق4 ش12 ",99141997.870067999,null,"H",null,23.25,null,1,1,null,null,null,4.5,5.5,1]
[null,"الدعيه","ق3ش39 ",99141997.870067999,null,"H",null,18,null,null,1,null,null,null,4.5,2.5,null,1]
[null,"ميدان حولي","ق11ش 1 ج ",99141997.870067999,null,"H",null,15.25,null,null,null,null,null,null,4.5,2.5,1,null,null,1]

{"sheet":"date","index":2,"n_rows":31,"n_cols":1,"rows_kept":31,"cut":false,"hidden":false,"merged":[]}
["2020-07-01"]
["2020-07-02"]
["2020-07-03"]
["2020-07-04"]
["2020-07-05"]
["2020-07-06"]
["2020-07-07"]
["2020-07-08"]
["2020-07-09"]
["2020-07-10"]
["2020-07-11"]
["2020-07-12"]
["2020-07-13"]
["2020-07-14"]
["2020-07-15"]
["2020-07-16"]
["2020-07-17"]
["2020-07-18"]
["2020-07-19"]
["2020-07-20"]
["2020-07-21"]
["2020-07-22"]
["2020-07-23"]
["2020-07-24"]
["2020-07-25"]
["2020-07-26"]
["2020-07-27"]
["2020-07-28"]
["2020-07-29"]
["2020-07-30"]
["2020-07-31"]

{"sheet":"INV","index":3,"n_rows":33,"n_cols":5,"rows_kept":33,"cut":false,"hidden":false,"merged":[[5,2,5,3],[1,2,1,3]]}
[]
[null,null," INVOICE"]
[null,null,null,null,"DATE"]
[null,null,null,null,"INVOICE NO."]
["المدينه"]
["العنوان"]
["التيلفون"]
[]
["DESCRIPTION","QTY","UNIT PRICE",null,"TOTAL"]
[{"$f":"Main!G31","v":"كوجا احمر "},{"$f":"Main!H31","v":"كيلو"},{"$f":"Main!I31","v":2.2000000000000002},null,{"$f":"C10*D10","v":0}]
[{"$f":"Main!G32","v":"توت "},{"$f":"Main!H32","v":"كيلو"},{"$f":"Main!I32","v":3},null,0]
[{"$f":"Main!G33","v":"جزر بيبي"},{"$f":"Main!H33","v":"علبة"},{"$f":"Main!I33","v":0.5},null,0]
[{"$f":"Main!G34","v":"كرز"},{"$f":"Main!H34","v":"كيلو"},{"$f":"Main!I34","v":1.5},null,0]
[{"$f":"Main!G35","v":"مشمش"},{"$f":"Main!H35","v":"كيلو"},{"$f":"Main!I35","v":1.5},null,0]
[{"$f":"Main!G36","v":"تفاح"},{"$f":"Main!H36","v":"2.5كيلو"},{"$f":"Main!I36","v":2.75},null,0]
[{"$f":"Main!G37","v":"مضغوط"},{"$f":"Main!H37","v":"سحارة"},{"$f":"Main!I37","v":3.75},null,0]
[{"$f":"Main!G38","v":"لوبيا "},{"$f":"Main!H38","v":"كيلو"},{"$f":"Main!I38","v":1.5},null,0]
[{"$f":"Main!G39","v":"خوخ زعفران"},{"$f":"Main!H39","v":"علبه"},{"$f":"Main!I39","v":2},null,0]
[{"$f":"Main!G40","v":"فراوله"},{"$f":"Main!H40","v":"علبه"},{"$f":"Main!I40","v":1.25},null,0]
[{"$f":"Main!G41","v":"خوخ اخضر "},{"$f":"Main!H41","v":"سحارة"},{"$f":"Main!I41","v":3.75},null,0]
[{"$f":"Main!G43","v":"نيكتارين "},{"$f":"Main!H43","v":"سحارة"},{"$f":"Main!I42","v":15},null,0]
[{"$f":"Main!G44","v":"خوخ ابيض"},{"$f":"Main!H44","v":"سحارة"},{"$f":"Main!I43","v":1.75},null,0]
[{"$f":"Main!G45","v":"باميه"},{"$f":"Main!H45","v":"15كيلو"},{"$f":"Main!I44","v":3.75},null,0]
[{"$f":"Main!G46","v":0},{"$f":"Main!H46","v":0},{"$f":"Main!I45","v":15},null,0]
[{"$f":"Main!G47","v":0},{"$f":"Main!H47","v":0},{"$f":"Main!I46","v":0},null,0]
[{"$f":"Main!G48","v":0},{"$f":"Main!H48","v":0},{"$f":"Main!I47","v":0},null,0]
[{"$f":"Main!G49","v":0},{"$f":"Main!H49","v":0},{"$f":"Main!I48","v":0},null,0]
[{"$f":"Main!G50","v":0},{"$f":"Main!H50","v":0},{"$f":"Main!I49","v":0},null,0]
[{"$f":"Main!G51","v":0},{"$f":"Main!H51","v":0},{"$f":"Main!I50","v":0},null,0]
[{"$f":"Main!G52","v":0},{"$f":"Main!H52","v":0},{"$f":"Main!I51","v":0},null,0]
[null,null,"SUBTOTAL",{"$f":"SUM(E10:E20)","v":0}]
[null,null,"DISCOUNT",0]
[null,null,"TOTAL",{"$f":"D31-D32","v":0}]